Cogmind - Beta 9.2 @@@ ROGUE MODE // 2019.12.04 @ 23:48:50 Player: spruce (@macklemurr) Result: Destroyed by Y-45 Defender with Heavy Assault Rifle Performance ------------- Evolutions (1) 500 Regions Visited (3) 600 Robots Destroyed (19) 95 Value Destroyed (516) 516 Prototype IDs (0) 0 Alien Tech Used (0) 0 Bonus (0) 0 TOTAL SCORE: 1711 Bonus ------- None Cogmind --------- Core Integrity 0/400 Matter 204/300 Energy 13/250 System Corruption 0% Temperature Cool (9) Movement Flying (117) Ox1 Location -9/Storage Parts ------- > --- POWER (1) -------- Ion Engine > --- PROPULSION (4) --- Flight Unit Flight Unit > --- UTILITY (2) ------ Medium Storage Unit Improved Targeting Computer > --- WEAPON (2) ------- (None) > --- INVENTORY (8) ---- Improved Signal Interpreter Light Armor Plating Small Laser Particle Gun Mini Grenade Launcher Peak State ------------ > --- POWER ------------ Ion Engine > --- PROPULSION ------- Aluminum Leg Aluminum Leg Aluminum Leg Aluminum Leg > --- UTILITY ---------- Medium Storage Unit Improved Targeting Computer > --- WEAPON ----------- Heavy EM Pulse Gun Assault Rifle > --- INVENTORY -------- Ion Engine Wheel Improved Signal Interpreter Improved Targeting Computer Light Armor Plating EM Pulse Gun EM Pulse Gun Light Assault Rifle [Rating: 12] Favorites ----------- Power Ion Engine Engine Ion Engine Propulsion Aluminum Leg Leg Aluminum Leg Wheel Compact Wheel Flight Unit Flight Unit Utility Medium Storage Unit Storage Medium Storage Unit Processor Improved Targeting Computer Weapon Assault Rifle Energy Gun Heavy EM Pulse Gun Ballistic Gun Assault Rifle Launcher Mini Grenade Launcher Build | -11 -10 -9 -9 ------- Run | Scr Mat Mat Sto Slots Evolved 2 | . . 2 . Power . | . . . . Propulsion 2 | . . 2 . Utility . | . . . . Weapon . | . . . . Parts Attached 28 | 6 1 2 19 Power 3 | 1 . . 2 Engine 3 | 1 . . 2 Core . | . . . . Reactor . | . . . . Propulsion 10 | 2 . 2 6 Treads . | . . . . Leg 5 | 2 . 1 2 Wheel 1 | . . 1 . Hover . | . . . . Flight 4 | . . . 4 Utility 5 | 1 1 . 3 Device . | . . . . Storage 3 | 1 1 . 1 Processor 2 | . . . 2 Hackware . | . . . . Protection . | . . . . Artifact . | . . . . Weapon 10 | 2 . . 8 Energy Gun 4 | . . . 4 Energy Cannon . | . . . . Ballistic Gun 4 | 2 . . 2 Ballistic Cannon . | . . . . Launcher 2 | . . . 2 Special Weapon . | . . . . Impact Weapon . | . . . . Slashing Weapon . | . . . . Piercing Weapon . | . . . . Special Melee Weapon . | . . . . Unidentified Prototypes . | . . . . Parts Lost 12 | . . . 12 Power 1 | . . . 1 Propulsion 7 | . . . 7 Utility . | . . . . Weapon 4 | . . . 4 Highest Loss Streak 9 | . . . 9 Average Slot Usage (%) 88 | . 93 100 85 Engine 10 | . 14 11 8 Leg 23 | . 28 33 19 Wheel 3 | . . 11 5 Flight 7 | . . . 12 Storage 14 | . 21 22 9 Processor 7 | . . . 12 Energy Gun 4 | . . . 6 Ballistic Gun 16 | . 28 22 10 Naked Turns . | . . . . Heaviest Build 20 | 12 20 20 20 Greatest Support 40 | 20 20 30 40 Greatest Overweight (x) 2 | 1 . . 2 Average Overweight (x) . | . . . . Largest Inventory Capacity 10 | 6 10 10 10 Average Capacity 7 | 4 8 10 7 Most Carried 10 | 3 8 8 10 Average Carried 5 | 1 6 7 5 Final Capacity 10 | 6 10 10 8 Final Carried 8 | 3 8 8 5 Class Distribution -------------------- 83% | Mutant 16% | Scavenger-Sprinter Dominant Class ---------------- Mutant | -10/Materials Mutant | -9/Materials Mutant | -9/Storage Resources | -11 -10 -9 -9 ----------- Run | Scr Mat Mat Sto Matter Collected 501 | 141 60 . 300 Remotely . | . . . . Salvage Created 601 | . 76 . 525 Parts 44 | . 4 . 40 Haulers Intercepted . | . . . . Recyclers Shooed . | . . . . Parts Field Recycled . | . . . . Retrieved Matter . | . . . . Parts Self-Destructed . | . . . . Prevented . | . . . . Kills | -11 -10 -9 -9 ------- Run | Scr Mat Mat Sto Combat Hostiles Destroyed 17 | . 4 . 13 Guns 14 | . 4 . 10 AOE 3 | . . . 3 Classes Destroyed 5 | . 2 . 3 Worker 1 | . . . 1 Watcher 1 | . . . 1 Swarmer 6 | . 3 . 3 Grunt 9 | . 1 . 8 Sentry 2 | . . . 2 Best Kill Streak 4 | . 4 . 4 Combat Bots Only 4 | . 4 . 3 Max Kills in Single Turn 2 | . 1 . 2 Gunslinging 1 | . . . 1 Exploded 2 | . . . 2 Melee . | . . . . Uniques/NPCs Destroyed . | . . . . Combat | -11 -10 -9 -9 -------- Run | Scr Mat Mat Sto Damage Taken 1400 | . 171 22 1207 Core 432 | . 17 . 415 Absorbed by Shields 28 | . . . 28 Core Remaining (%) 96 | 100 93 . . Volleys Fired 59 | . 13 . 46 Largest 2 | . 2 . 2 Hottest 65 | . 40 . 65 Shots Fired 99 | . 26 . 73 Gun 93 | . 26 . 67 Cannon . | . . . . Launcher 6 | . . . 6 Special . | . . . . Kinetic 55 | . 26 . 29 Thermal 1 | . . . 1 Explosive 6 | . . . 6 Electromagnetic 37 | . . . 37 Robot Hit Streak 26 | . 6 . 26 Robot Miss Streak 4 | . 4 . 1 Penetration Max . | . . . . Secondary Targets 2 | . 1 . 1 Max Gunslinging Chain 1 | . 1 . 1 Shots Hit Robots 73 | . 16 . 57 Core Hits 32 | . 6 . 26 Critical Hits 1 | . 1 . . Critical Kills . | . . . . Critical Parts Destroyed 1 | . 1 . . Melee Attacks . | . . . . Impact . | . . . . Slashing . | . . . . Piercing . | . . . . Sneak Attacks . | . . . . Combat Hostiles . | . . . . Follow-up Attacks . | . . . . Damage Inflicted 1114 | . 186 . 928 Guns 928 | . 186 . 742 Cannons . | . . . . Explosions 186 | . . . 186 Melee . | . . . . Ramming . | . . . . Kinetic 426 | . 186 . 240 Thermal 65 | . . . 65 Explosive 121 | . . . 121 Electromagnetic 502 | . . . 502 Impact . | . . . . Slashing . | . . . . Piercing . | . . . . Highest Corruption . | . . . . Average Corruption . | . . . . Corruption Purged . | . . . . Overload Shots . | . . . . Overflow Damage . | . . . . Projectiles . | . . . . Explosions . | . . . . Melee . | . . . . Knockbacks . | . . . . Impact . | . . . . Kinetic . | . . . . Secondary . | . . . . Self-Inflicted Damage 127 | . . . 127 Shots 3 | . . . 3 Rammed . | . . . . Targets Rammed . | . . . . Kicked . | . . . . Crushed . | . . . . Highest Temperature 77 | . 12 . 77 Average Temperature 26 | . 9 . 27 Received Heat Transfer 500 | . 24 12 464 Siege Activations . | . . . . Robots Corrupted . | . . . . Combat Hostiles . | . . . . Parts Fried 1 | . . . 1 Impact Corruptions . | . . . . Robots Melted . | . . . . Combat Hostiles . | . . . . Parts Melted . | . . . . Heat Transferred 100 | . . . 100 Parts Sabotaged . | . . . . Parts Stolen . | . . . . Parts Stripped . | . . . . Power Chain Reactions 1 | . . . 1 Missiles Intercepted . | . . . . Alert | -11 -10 -9 -9 ------- Run | Scr Mat Mat Sto Peak Influence 223 | . 130 54 223 Average Influence 89 | . 73 54 117 Maximum Alert Level 1 | . . . 1 Low Security (%) 91 | 100 100 100 85 Level 1 8 | . . . 14 Level 2 . | . . . . Level 3 . | . . . . Level 4 . | . . . . Level 5 . | . . . . High Security . | . . . . Max Security . | . . . . Squads Dispatched 4 | . 1 . 3 Investigation 1 | . . . 1 Extermination . | . . . . Reinforcement 3 | . 1 . 2 Assault . | . . . . Garrison . | . . . . Intercept . | . . . . Construction Impeded . | . . . . Haulers Reinforced . | . . . . Stealth | -11 -10 -9 -9 --------- Run | Scr Mat Mat Sto Distress Signals 4 | . . . 4 Communications Jammed . | . . . . Distress Signals . | . . . . Times Spotted 45 | . 12 4 29 Peak Tracking Total 9 | . 5 4 9 Tactical Retreats 4 | . 2 . 2 Traps | -11 -10 -9 -9 ------- Run | Scr Mat Mat Sto Traps Triggered 1 | . . . 1 Indirectly . | . . . . Trap Hack Attempts . | . . . . Triggered . | . . . . Disarmed . | . . . . Reprogrammed . | . . . . Reused . | . . . . Traps Extracted . | . . . . Installed . | . . . . Triggered . | . . . . Machines | -11 -10 -9 -9 ---------- Run | Scr Mat Mat Sto Machines Disabled 3 | . . . 3 Max in Single Turn 2 | . . . 2 Machines Sabotaged . | . . . . Garrisons Compromised . | . . . . Overloaded Fab Kills . | . . . . Fab Network Shutdowns . | . . . . Hacking | -11 -10 -9 -9 --------- Run | Scr Mat Mat Sto Machines Accessed 8 | . 2 1 5 Terminals 8 | . 2 1 5 Fabricators . | . . . . Repair Stations . | . . . . Recycling Units . | . . . . Scanalyzers . | . . . . Garrison Access . | . . . . Total Hacks 17 | . 3 1 13 Successful 9 | . . . 9 Failed 8 | . 3 1 4 Catastrophic 2 | . 1 . 1 Database Lockouts . | . . . . Manual 12 | . 3 1 8 Terminals 17 | . 3 1 13 Fabricators . | . . . . Repair Stations . | . . . . Recycling Units . | . . . . Scanalyzers . | . . . . Garrison Access . | . . . . Terminal Hacks 7 | . . . 7 Open Door 1 | . . . 1 Level Access Points 1 | . . . 1 Branch Access Points 2 | . . . 2 Emergency Access Points 1 | . . . 1 Zone Layout 2 | . . . 2 Fabricator Hacks . | . . . . Repair Station Hacks . | . . . . Recycling Unit Hacks . | . . . . Scanalyzer . | . . . . Garrison Access Hacks . | . . . . Unauthorized Hacks 4 | . . . 4 Terminals 2 | . . . 2 Botnet 2 | . . . 2 Fabricators . | . . . . Repair Stations . | . . . . Recycling Units . | . . . . Scanalyzers . | . . . . Garrison Access . | . . . . Data Cores Recovered . | . . . . Used . | . . . . Hacking Detections 5 | . 2 1 2 Full Trace Events 1 | . . . 1 Feedback Events . | . . . . Feedback Blocked . | . . . . Robot Schematics Acquired . | . . . . Robots Built . | . . . . Matter . | . . . . Time . | . . . . Total Robot Build Rating . | . . . . Part Schematics Acquired . | . . . . Parts Built . | . . . . Matter . | . . . . Time . | . . . . Total Part Build Rating . | . . . . Parts Repaired . | . . . . Time . | . . . . Parts Recycled . | . . . . Recycled Matter . | . . . . Retrieved Matter . | . . . . Retrieved Components . | . . . . Parts Scanalyzed . | . . . . Part Schematics Acquired . | . . . . Parts Damaged . | . . . . Bothacking | -11 -10 -9 -9 ------------ Run | Scr Mat Mat Sto Used RIF Installer . | . . . . Robots Hacked . | . . . . Non-combat . | . . . . Combat . | . . . . Robot Hacks Applied . | . . . . Relay Couplers Released . | . . . . Robots Rewired . | . . . . Allies Hacked . | . . . . Hacks Repelled . | . . . . Allies | -11 -10 -9 -9 -------- Run | Scr Mat Mat Sto Total Allies . | . . . . Largest Group . | . . . . Highest-Rated Group . | . . . . Highest-Rated Ally . | . . . . Total Orders . | . . . . Ally Attacks . | . . . . Total Damage . | . . . . Kills . | . . . . Allies Corrupted . | . . . . Allies Melted . | . . . . Intel | -11 -10 -9 -9 ------- Run | Scr Mat Mat Sto Robot Analysis Total . | . . . . Derelict Logs Recovered . | . . . . Drone Launches . | . . . . Drone Recoveries . | . . . . Exploration | -11 -10 -9 -9 ------------- Run | Scr Mat Mat Sto Turns Passed 926 | 92 264 51 519 Spaces Moved 554 | 77 183 40 254 Core 33 | 26 . . 7 Treads . | . . . . Legs 380 | 51 183 40 106 Wheels . | . . . . Hover . | . . . . Flight 141 | . . . 141 Fastest Speed 31 | 50 120 120 31 Average Speed 96 | 102 120 120 74 Slowest Speed 150 | 120 120 120 150 Overloaded Moves . | . . . . Propulsion Burnouts . | . . . . Robots Hopped . | . . . . Cave-ins Triggered . | . . . . Exploration Rate (%) 28 | 4 47 5 56 Regions Visited 3 Branch Regions 1 Pre-discovered Areas . | . . . . Known Exits Taken . | . . . . Unknown Exits Taken 3 | 1 1 1 . Scrap Searched . | . . . . Spaces Dug 25 | . . . 25 Terrain Destroyed 42 | . . . 42 Melee . | . . . . Projectile . | . . . . AOE 42 | . . . 42 Actions | -11 -10 -9 -9 --------- Run | Scr Mat Mat Sto Total 851 | 90 203 43 515 Wait 165 | . 2 . 163 Move 551 | 76 182 39 254 Hop . | . . . . Pick Up 22 | 8 5 2 7 Fast Attach 12 | 1 1 . 10 Attach 13 | 5 . 2 6 Detach 3 | . . . 3 Swap 3 | . . . 3 Drop 10 | . . . 10 Fire 59 | . 13 . 46 Melee . | . . . . Ram . | . . . . Kick . | . . . . Crush . | . . . . Escape Stasis 13 | . . . 13 Rewire . | . . . . Trap . | . . . . Miscellaneous . | . . . . Route ------- -11/Scrapyard -10/Materials (discovered 2 exits: *Mat / [*Min]) -9/Materials -9/Storage (discovered 2 exits: Mat / Rec) History --------- Turn | Location | Event 7 | -11/Scrapyard | Discovered new exit (range 14) 93 | -11/Scrapyard | Entered Materials 209 | -10/Materials | Discovered new exit (range 13) 312 | -10/Materials | Build established: Mutant 350 | -10/Materials | Discovered new exit (range 5) 357 | -10/Materials | Entered another Materials area 357 | -9/Materials | Evolved 2 slots: Propulsion x2 378 | -9/Materials | Discovered new exit (range 13) 408 | -9/Materials | Entered Storage 434 | -9/Storage | Identified exit to Recycling 726 | -9/Storage | Core integrity fell below 50% 758 | -9/Storage | Lost 9 parts (1p4n4w) 807 | -9/Storage | Identified exit to Materials 896 | -9/Storage | Core integrity fell below 20% 927 | -9/Storage | Destroyed by Y-45 Defender with Heavy Assault Rifle Last Messages --------------- K-01 Serf collects debris. Stasis field depleted. K-01 Serf collects debris. K-01 Serf cleans the Transfer Shaft. K-01 Serf collects debris. K-01 Serf cleans the Transfer Shaft. Connecting with Terminal... ALERT: Suspicious activity at Terminal S005. Dispatching Investigation squad. Acquired Mni. Grenade Launcher. Repair Station disabled. Compression Vault explodes. O-16 Technician: "IFF HANDSHAKE FAILED. SECURING TERMINAL." ALERT: Hostiles spotted, dispatching reinforcements to Terminal S015. Connecting with Terminal... G-34 Mercenary destroyed. The unstable cave ceiling collapses. Terminal disabled. Acquired Ion Engine. Flight Unit destroyed. Map ----- +----------------------------------------------------+ | ############## #??????????????????????????? | | ###????????????????????????? | | ######## ##### + "????????????????????????? | | #??????# #???# #T#????????????????????????? | | ######?# #???# ###????????????????????????? | | # #?# #???# #??????????????????????????? | | #??????# #???# #??????????????????????????? | | #??????# #???# #??????????????????????????? | | #??????# #???# #??????????????????????????? | | #??????# #???# #??????????????????????????? | | ## +????###+##+###?# #??????????????????????????? | | ?? #????# #?# #??????????????????????????? | | ?? #????# #?# #??????????????????????????? | | ?? +????# """"" #?# #?######???????????????????? | | ?? #????#?????" #?# #?# """#???????????????????? | | ?? #??????????" #?# #?#""R"#???????????????????? | | ?? ??????????"" #?# ###"" "####????????????????? | | ?? ????????????" ### # ###??????????????? | | ???????????????" ##T # ###????????????? | | ??????????????? ### # " #????????????? | | ????????????#/###### # " #????????????? | | ?????? + """ "##????????????? | | ???????????# ### """ ##?????????????? | | ???????????#+#### ?# """ #??????????????? | | ????????????????# ??# Y=% ###?????????????? | | ????????????????# ## [% @# "?????????????? | | ????????????????# a = "?>???????????? | | ????????????????# "?????????????? | | ????????????????#### + "?????????????? | | ??????????????????# ##?????????????? | | ??????????????????# """"" Y##??????????????? | | ??????????????????# """"" ! ##???????????????? | | ??????????????????# """"" #????????????????? | | ??????????????????# #????????????????? | | ??????????????????####??########????????????????? | | | | | | | | | | | | | | | | | | | | | | | | | | | | | | | +----------------------------------------------------+ Best States ------------- Heat Dissipation 28 Energy Generation 10 Energy Capacity 250 Matter Stores 300 Matter Capacity 300 Sight Range 16 Terrain Scan Density 10 Evasion (%) 63 Targeting Accuracy 12 Item Schematics ----------------- None Robot Schematics ------------------ None Fabricated ------------ Nothing Alien Tech Used ----------------- None Achievements -------------- None Challenges ------------ None Game ------ Seed FieldUltimateExpander Manual? 0 Play Time 00:13:20 Cumulative 60.7 hours Start 2019.12.04 @ 23:38:20 End 2019.12.04 @ 23:48:50 Sessions 1 Manual Loads 0 Difficulty Rogue Special Mode None Game No. 173 Rogue 173 Adventurer 0 Explorer 0 Win Type - Total 1 Types 1/0/0/0/0/0/0 Lore% 65 Gallery% 62 Achievement% 51 Wizard Run 0 Options --------- ASCII 0 Keyboard 0 Movement Numpad Keybinds 0 Fullscreen 1 Font 24/Smallcaps Map View 76x50 Tactical HUD 0 Map Filters NONE Filters NONE Steam 1 RUN: 7c3a6eaa-12eb-4aa3-9c35-2ee1ffd529b2